[Event "Turkish-ch Youth U15 2024"]
[Site "Belek Antalya"]
[Date "2024.01.27"]
[Round "9"]
[White "Buyuk, Elvin Esma"]
[Black "Oztay, Rezzan"]
[Result "1-0"]
[ECO "A02"]
[WhiteElo "1546"]
[BlackElo "1388"]
[Annotator "NA RC COMBH"]
[PlyCount "57"]
[EventDate "2024.01.21"]
[EventType "swiss"]
[EventCountry "TUR"]
[SourceTitle "playchess.com"]
[Source "ChessBase"]
[SourceQuality "1"]
[TimeControl "5400+30"]

1. f4 {[%emt 0:01:00]} c5 {[%emt 0:02:00]} 2. b3 {[%emt 0:00:30]} Nc6 {[%emt 0:01:30]} 3. Bb2 {[%emt 0:00:30]} e6 {[%emt 0:00:30]} 4. Nf3 {[%emt 0:01:30]} Nf6 {[%emt 0:01:30]} 5. e3 {[%emt 0:00:30]} Be7 {[%emt 0:01:30]} 6. Bb5 {[%emt 0:03:30]} O-O {[%emt 0:01:30]} 7. O-O {[%emt 0:01:30]} b6 {[%emt 0:02:30]} 8. Bxc6 {[%emt 0:00:30]} dxc6 {[%emt 0:00:30]} 9. Ne5 {[%emt 0:01:30]} Qc7 {[%emt 0:05:30]} 10. d3 {[%emt 0:02:30]} Nd5 {[%emt 0:04:30]} 11. Rf3 {[%emt 0:25:30]} f6 {[%emt 0:02:30]} 12. Ng4 {[%emt 0:00:30]} e5 {[%emt 0:04:30]} 13. f5 {[%emt 0:00:30]} g6 {[%emt 0:05:30]} 14. c4 {[%emt 0:05:30]} Nb4 {[%emt 0:01:30]} 15. a3 {[%emt 0:04:30]} Na6 {[%emt 0:01:30]} 16. e4 {[%emt 0:06:30]} b5 {[%emt 0:04:30]} 17. cxb5 {[%emt 0:07:30]} cxb5 {[%emt 0:00:30]} 18. Nc3 {[%emt 0:00:30]} c4 {[%emt 0:02:30]} 19. Nd5 {[%emt 0:02:30]} Qb7 {[%emt 0:08:30]} 20. d4 {[%emt 0:05:30]} b4 {[%emt 0:06:30]} 21. bxc4 {[%emt 0:06:30]} bxa3 {[%emt 0:00:30]} 22. Nxe7+ {[%emt 0:00:30]} Qxe7 {[%emt 0:07:30]} 23. Bxa3 {[%emt 0:02:30]} Nb4 {[%emt 0:01:30]} 24. dxe5 {[%emt 0:01:37]} Bb7 {[%emt 0:03:30]} 25. Nxf6+ {[%emt 0:00:34]} Kg7 {[%emt 0:00:30]} 26. Nd7 {[%emt 0:00:30]} gxf5 {[%emt 0:02:30]} 27. Nxf8 {[%emt 0:04:39]} Rxf8 {[%emt 0:00:30]} 28. Bxb4 {[%emt 0:01:44]} Qxb4 {[%emt 0:00:30]} 29. Qd7+ {[%emt 0:00:02]} 1-0

[Event "Turkish-ch Youth U15 2024"]
[Site "Belek Antalya"]
[Date "2024.01.27"]
[Round "9"]
[White "Seyhan, Pelin"]
[Black "Cemali, Seda"]
[Result "1-0"]
[ECO "B04"]
[WhiteElo "1532"]
[BlackElo "1236"]
[Annotator "NA RC COMBH"]
[PlyCount "73"]
[EventDate "2024.01.21"]
[EventType "swiss"]
[EventCountry "TUR"]
[SourceTitle "playchess.com"]
[Source "ChessBase"]
[SourceQuality "1"]
[TimeControl "5400+30"]

1. e4 {[%emt 0:01:00]} Nf6 {[%emt 0:01:00]} 2. e5 {[%emt 0:00:30]} Nd5 {[%emt 0:00:30]} 3. d4 {[%emt 0:00:30]} d6 {[%emt 0:00:00]} 4. c4 {[%emt 0:00:00]} Nb6 {[%emt 0:00:00]} 5. exd6 {[%emt 0:00:00]} cxd6 {[%emt 0:00:00]} 6. Nc3 {[%emt 0:00:30]} g6 {[%emt 0:00:00]} 7. h3 {[%emt 0:00:30]} Bg7 {[%emt 0:00:30]} 8. Nf3 {[%emt 0:00:30]} O-O {[%emt 0:05:30]} 9. Be2 {[%emt 0:01:30]} Bf5 {[%emt 0:07:30]} 10. Be3 {[%emt 0:04:30]} Nc6 {[%emt 0:08:30]} 11. O-O {[%emt 0:01:30]} Rc8 {[%emt 0:03:30]} 12. Rc1 {[%emt 0:01:30]} d5 {[%emt 0:08:30]} 13. c5 {[%emt 0:06:30]} Na8 {[%emt 0:00:30]} 14. Qb3 {[%emt 0:00:30]} Nc7 {[%emt 0:15:30]} 15. Qxb7 {[%emt 0:07:30]} Rb8 {[%emt 0:02:30]} 16. Qxc6 {[%emt 0:11:30]} Bd7 {[%emt 0:00:30]} 17. Qxc7 {[%emt 0:00:30]} Qxc7 {[%emt 0:00:30]} 18. Nxd5 {[%emt 0:00:30]} Qd8 {[%emt 0:00:30]} 19. b3 {[%emt 0:03:30]} Bb5 {[%emt 0:03:30]} 20. Bxb5 {[%emt 0:00:30]} Rxb5 {[%emt 0:00:30]} 21. Nc3 {[%emt 0:00:30]} Rb8 {[%emt 0:01:30]} 22. Bf4 {[%emt 0:00:30]} Rc8 {[%emt 0:00:30]} 23. Rfd1 {[%emt 0:00:30]} Qd7 {[%emt 0:02:30]} 24. b4 {[%emt 0:00:30]} Qf5 {[%emt 0:01:30]} 25. Be3 {[%emt 0:00:30]} Rfd8 {[%emt 0:01:30]} 26. a4 {[%emt 0:04:30]} h6 {[%emt 0:13:30]} 27. b5 {[%emt 0:02:30]} g5 {[%emt 0:01:30]} 28. a5 {[%emt 0:00:30]} Qd7 {[%emt 0:02:30]} 29. b6 {[%emt 0:00:30]} f5 {[%emt 0:00:30]} 30. d5 {[%emt 0:04:30]} axb6 {[%emt 0:06:05]} 31. axb6 {[%emt 0:00:00]} Bxc3 {[%emt 0:04:19]} 32. c6 {[%emt 0:02:00]} Rxc6 {[%emt 0:01:07]} 33. dxc6 {[%emt 0:00:00]} Qxd1+ {[%emt 0:07:28]} 34. Rxd1 {[%emt 0:00:00]} Rxd1+ {[%emt 0:00:30]} 35. Kh2 {[%emt 0:00:00]} g4 {[%emt 0:02:06]} 36. c7 {[%emt 0:01:00]} gxf3 {[%emt 0:00:33]} 37. c8=Q+ {[%emt 0:00:00]} 1-0

[Event "Turkish-ch Youth U15 2024"]
[Site "Belek Antalya"]
[Date "2024.01.27"]
[Round "9"]
[White "Sezer, Ipek"]
[Black "Iyican, Sude"]
[Result "0-1"]
[ECO "D87"]
[WhiteElo "1299"]
[BlackElo "1133"]
[Annotator "NA RC COMBH"]
[PlyCount "128"]
[EventDate "2024.01.21"]
[EventType "swiss"]
[EventCountry "TUR"]
[SourceTitle "playchess.com"]
[Source "ChessBase"]
[SourceQuality "1"]
[TimeControl "5400+30"]

1. d4 {[%emt 0:01:00]} g6 {[%emt 0:01:00]} 2. c4 {[%emt 0:00:30]} Nf6 {[%emt 0:00:30]} 3. Nc3 {[%emt 0:00:30]} d5 {[%emt 0:00:30]} 4. cxd5 {[%emt 0:00:30]} Nxd5 {[%emt 0:00:30]} 5. e4 {[%emt 0:00:30]} Nxc3 {[%emt 0:00:30]} 6. bxc3 {[%emt 0:00:00]} Bg7 {[%emt 0:00:00]} 7. Bc4 {[%emt 0:00:00]} O-O {[%emt 0:00:00]} 8. Ne2 {[%emt 0:00:00]} c5 {[%emt 0:00:00]} 9. Be3 {[%emt 0:00:00]} cxd4 {[%emt 0:00:00]} 10. cxd4 {[%emt 0:00:00]} Nc6 {[%emt 0:02:30]} 11. Rc1 {[%emt 0:00:00]} Bd7 {[%emt 0:06:30]} 12. h4 {[%emt 0:02:30]} Na5 {[%emt 0:08:30]} 13. Bd3 {[%emt 0:00:30]} b5 {[%emt 0:23:30]} 14. h5 {[%emt 0:07:30]} Rc8 {[%emt 0:20:30]} 15. Ng3 {[%emt 0:15:30]} Rxc1 {[%emt 0:03:30]} 16. Qxc1 {[%emt 0:01:30]} Qc8 {[%emt 0:01:30]} 17. Ke2 {[%emt 0:01:30]} a6 {[%emt 0:11:07]} 18. Qg1 {[%emt 0:05:30]} g5 {[%emt 0:12:09]} 19. e5 {[%emt 0:03:30]} Qc3 {[%emt 0:03:54]} 20. Qb1 {[%emt 0:00:30]} h6 {[%emt 0:02:31]} 21. Rc1 {[%emt 0:14:30]} Qa3 {[%emt 0:00:16]} 22. Ne4 {[%emt 0:01:30]} Nc4 {[%emt 0:00:52]} 23. Bxc4 {[%emt 0:20:30]} bxc4 {[%emt 0:00:30]} 24. Rc3 {[%emt 0:00:00]} Qa5 {[%emt 0:00:06]} 25. Bxg5 {[%emt 0:03:00]} hxg5 {[%emt 0:00:37]} 26. Nxg5 {[%emt 0:00:30]} f5 {[%emt 0:00:39]} 27. exf6 {[%emt 0:01:30]} Bf5 {[%emt 0:00:20]} 28. Qc1 {[%emt 0:01:30]} Bd3+ {[%emt 0:00:46]} 29. Kd1 {[%emt 0:00:36]} Rxf6 {[%emt 0:00:30]} 30. Rxd3 {[%emt 0:00:30]} Qa4+ {[%emt 0:00:30]} 31. Ke1 {[%emt 0:00:30]} cxd3 {[%emt 0:00:30]} 32. Qc8+ {[%emt 0:00:30]} Bf8 {[%emt 0:00:30]} 33. Ne4 {[%emt 0:00:30]} Qb4+ {[%emt 0:00:30]} 34. Kd1 {[%emt 0:00:30]} Rb6 {[%emt 0:00:30]} 35. Qg4+ {[%emt 0:00:30]} Kh8 {[%emt 0:00:30]} 36. Nd2 {[%emt 0:00:30]} Qa4+ {[%emt 0:00:30]} 37. Nb3 {[%emt 0:00:30]} Qc6 {[%emt 0:01:03]} 38. d5 {[%emt 0:06:59]} Qc2+ {[%emt 0:00:30]} 39. Ke1 {[%emt 0:00:30]} Qe2+ {[%emt 0:00:30]} 40. Qxe2 {[%emt 0:00:00]} dxe2 {[%emt 0:00:00]} 41. Kxe2 {[%emt 0:00:00]} Rd6 {[%emt 0:00:00]} 42. g4 {[%emt 0:00:07]} Rxd5 {[%emt 0:00:15]} 43. Ke3 {[%emt 0:00:00]} Bh6+ {[%emt 0:00:21]} 44. f4 {[%emt 0:00:12]} Re5+ {[%emt 0:01:08]} 45. Kf3 {[%emt 0:00:16]} Rb5 {[%emt 0:00:57]} 46. g5 {[%emt 0:00:30]} Bxg5 {[%emt 0:00:30]} 47. fxg5 {[%emt 0:00:30]} Rxg5 {[%emt 0:00:30]} 48. h6 {[%emt 0:00:30]} Kh7 {[%emt 0:00:30]} 49. Nd4 {[%emt 0:00:30]} Ra5 {[%emt 0:00:30]} 50. Nc6 {[%emt 0:01:07]} Rxa2 {[%emt 0:00:30]} 51. Nxe7 {[%emt 0:00:30]} Kxh6 {[%emt 0:00:00]} 52. Nf5+ {[%emt 0:00:00]} Kg5 {[%emt 0:00:18]} 53. Nd4 {[%emt 0:00:00]} Ra3+ {[%emt 0:01:13]} 54. Ke4 {[%emt 0:00:00]} Rc3 {[%emt 0:00:00]} 55. Nf3+ {[%emt 0:00:45]} Kf6 {[%emt 0:00:30]} 56. Ne5 {[%emt 0:00:30]} a5 {[%emt 0:00:30]} 57. Kd4 {[%emt 0:00:30]} Rc8 {[%emt 0:00:30]} 58. Nc4 {[%emt 0:00:22]} a4 {[%emt 0:00:57]} 59. Nb6 {[%emt 0:00:13]} Rg8 {[%emt 0:00:17]} 60. Kc3 {[%emt 0:00:52]} Rg4 {[%emt 0:00:23]} 61. Nc4 {[%emt 0:00:59]} Ke6 {[%emt 0:00:30]} 62. Na5 {[%emt 0:00:30]} Kd6 {[%emt 0:00:30]} 63. Kb2 {[%emt 0:01:27]} Kc5 {[%emt 0:01:17]} 64. Ka3 {[%emt 0:00:30]} Kb6 {[%emt 0:00:01]} 0-1

[Event "Turkish-ch Youth U15 2024"]
[Site "Belek Antalya"]
[Date "2024.01.27"]
[Round "9"]
[White "Senel, Duru"]
[Black "Gedik, Eylul Ceren"]
[Result "0-1"]
[ECO "A53"]
[WhiteElo "1172"]
[BlackElo "1479"]
[Annotator "NA RC COMBH"]
[PlyCount "56"]
[EventDate "2024.01.21"]
[EventType "swiss"]
[EventCountry "TUR"]
[SourceTitle "playchess.com"]
[Source "ChessBase"]
[SourceQuality "1"]
[TimeControl "5400+30"]

1. d4 {[%emt 0:01:00]} Nf6 {[%emt 0:01:00]} 2. c4 {[%emt 0:00:30]} d6 {[%emt 0:00:30]} 3. Nc3 {[%emt 0:00:30]} e5 {[%emt 0:00:00]} 4. dxe5 {[%emt 0:00:00]} dxe5 {[%emt 0:00:00]} 5. Qxd8+ {[%emt 0:01:00]} Kxd8 {[%emt 0:00:00]} 6. Bg5 {[%emt 0:01:30]} Be6 {[%emt 0:00:00]} 7. e3 {[%emt 0:02:30]} Nbd7 {[%emt 0:00:00]} 8. Nf3 {[%emt 0:02:30]} c6 {[%emt 0:00:00]} 9. Be2 {[%emt 0:00:30]} Kc7 {[%emt 0:00:30]} 10. O-O-O {[%emt 0:04:30]} a5 {[%emt 0:03:30]} 11. Bh4 {[%emt 0:03:30]} h6 {[%emt 0:15:30]} 12. Bg3 {[%emt 0:00:30]} Bd6 {[%emt 0:00:30]} 13. h3 {[%emt 0:02:30]} b6 {[%emt 0:06:30]} 14. Rd2 {[%emt 0:01:30]} Ne8 {[%emt 0:06:30]} 15. Rhd1 {[%emt 0:02:30]} f6 {[%emt 0:00:30]} 16. b3 {[%emt 0:04:30]} Bb4 {[%emt 0:02:30]} 17. Kb2 {[%emt 0:02:30]} Nc5 {[%emt 0:00:30]} 18. Rc2 {[%emt 0:05:30]} Bf5 {[%emt 0:00:30]} 19. Rcc1 {[%emt 0:00:30]} Nd6 {[%emt 0:10:30]} 20. Nb1 {[%emt 0:10:30]} a4 {[%emt 0:01:30]} 21. Nfd2 {[%emt 0:05:30]} axb3 {[%emt 0:04:30]} 22. axb3 {[%emt 0:00:30]} Ra7 {[%emt 0:00:30]} 23. e4 {[%emt 0:12:30]} Ndxe4 {[%emt 0:03:30]} 24. Nxe4 {[%emt 0:02:30]} Bxe4 {[%emt 0:00:30]} 25. Nd2 {[%emt 0:01:30]} Rha8 {[%emt 0:00:00]} 26. Nxe4 {[%emt 0:01:30]} Ra2+ {[%emt 0:00:00]} 27. Kb1 {[%emt 0:00:30]} Ra1+ {[%emt 0:00:30]} 28. Kc2 {[%emt 0:00:30]} R8a2# {[%emt 0:00:00]} 0-1

[Event "Turkish-ch Youth U15 2024"]
[Site "Belek Antalya"]
[Date "2024.01.27"]
[Round "9"]
[White "Alsac, Alper Tolga"]
[Black "Celik, Ege Yigit"]
[Result "0-1"]
[ECO "D85"]
[WhiteElo "1164"]
[BlackElo "1865"]
[Annotator "NA RC COMBH"]
[PlyCount "95"]
[EventDate "2024.01.21"]
[EventType "swiss"]
[EventCountry "TUR"]
[SourceTitle "playchess.com"]
[Source "ChessBase"]
[SourceQuality "1"]
[TimeControl "5400+30"]

1. d4 {[%emt 0:01:00]} Nf6 {[%emt 0:01:00]} 2. c4 {[%emt 0:00:30]} g6 {[%emt 0:00:30]} 3. Nc3 {[%emt 0:00:30]} d5 {[%emt 0:00:00]} 4. cxd5 {[%emt 0:00:30]} Nxd5 {[%emt 0:00:00]} 5. e4 {[%emt 0:01:30]} Nxc3 {[%emt 0:00:00]} 6. bxc3 {[%emt 0:00:30]} Bg7 {[%emt 0:00:00]} 7. Nf3 {[%emt 0:00:30]} c5 {[%emt 0:02:30]} 8. Be3 {[%emt 0:08:30]} Nc6 {[%emt 0:06:30]} 9. Bb5 {[%emt 0:15:30]} Qa5 {[%emt 0:24:30]} 10. Qb3 {[%emt 0:07:30]} cxd4 {[%emt 0:04:30]} 11. Bxd4 {[%emt 0:01:30]} O-O {[%emt 0:04:30]} 12. Bxc6 {[%emt 0:08:30]} bxc6 {[%emt 0:01:30]} 13. O-O {[%emt 0:00:30]} Ba6 {[%emt 0:01:30]} 14. Rfe1 {[%emt 0:00:30]} e5 {[%emt 0:03:30]} 15. Be3 {[%emt 0:00:30]} Rab8 {[%emt 0:00:30]} 16. Qc2 {[%emt 0:00:30]} Rfd8 {[%emt 0:01:30]} 17. Red1 {[%emt 0:10:30]} Bc4 {[%emt 0:03:30]} 18. Rd2 {[%emt 0:06:30]} h6 {[%emt 0:05:30]} 19. h3 {[%emt 0:02:30]} Rxd2 {[%emt 0:02:30]} 20. Nxd2 {[%emt 0:00:00]} Be6 {[%emt 0:00:00]} 21. c4 {[%emt 0:03:00]} f5 {[%emt 0:01:00]} 22. Nb3 {[%emt 0:02:30]} Qa4 {[%emt 0:00:30]} 23. Rc1 {[%emt 0:06:30]} Rb4 {[%emt 0:12:30]} 24. Nd2 {[%emt 0:05:28]} Qxc2 {[%emt 0:05:49]} 25. Rxc2 {[%emt 0:00:06]} Ra4 {[%emt 0:00:16]} 26. f3 {[%emt 0:03:47]} Bf8 {[%emt 0:01:10]} 27. exf5 {[%emt 0:03:05]} gxf5 {[%emt 0:00:40]} 28. Rb2 {[%emt 0:04:48]} a5 {[%emt 0:02:47]} 29. Rc2 {[%emt 0:02:28]} h5 {[%emt 0:00:30]} 30. Bf2 {[%emt 0:00:30]} Bh6 {[%emt 0:00:30]} 31. Be1 {[%emt 0:00:30]} Be3+ {[%emt 0:00:30]} 32. Kh2 {[%emt 0:00:30]} Bf4+ {[%emt 0:00:30]} 33. Kg1 {[%emt 0:00:30]} Kf7 {[%emt 0:00:30]} 34. Nb3 {[%emt 0:02:03]} Rxc4 {[%emt 0:11:31]} 35. Rxc4 {[%emt 0:00:30]} Bxc4 {[%emt 0:00:00]} 36. Nxa5 {[%emt 0:01:47]} Bd5 {[%emt 0:00:00]} 37. Nb3 {[%emt 0:00:39]} Ke6 {[%emt 0:00:18]} 38. Kf2 {[%emt 0:01:32]} Bc4 {[%emt 0:03:15]} 39. g3 {[%emt 0:01:04]} Bh6 {[%emt 0:00:18]} 40. Na5 {[%emt 0:00:04]} Bb5 {[%emt 0:01:10]} 41. Bb4 {[%emt 0:00:30]} Kd5 {[%emt 0:00:30]} 42. Nb7 {[%emt 0:00:30]} e4 {[%emt 0:00:42]} 43. Nd6 {[%emt 0:01:07]} e3+ {[%emt 0:01:01]} 44. Ke1 {[%emt 0:00:30]} Bf8 {[%emt 0:00:00]} 45. Nxb5 {[%emt 0:00:54]} Bxb4+ {[%emt 0:00:27]} 46. Ke2 {[%emt 0:00:30]} cxb5 {[%emt 0:00:30]} 47. Kxe3 {[%emt 0:00:00]} Ke5 {[%emt 0:00:00]} 48. g4 {[%emt 0:00:00]} 0-1